[Event "CRO-ch Youth U17 2020"]
[Site "Vinkovci"]
[Date "2020.08.01"]
[Round "6.4"]
[White "Vucenovic, Damian"]
[Black "Baturina, Marin"]
[Result "1-0"]
[ECO "B50"]
[WhiteElo "1959"]
[BlackElo "1740"]
[Annotator "ChessBase"]
[PlyCount "93"]
[EventDate "2020.07.28"]
[EventType "swiss"]
[EventCountry "CRO"]
[TimeControl "5400+30"]

1. e4 {[%emt 0:00:30]} c5 {[%emt 0:00:30]} 2. Nf3 {[%emt 0:00:00]} d6 {[%emt 0:00:00]} 3. c3 {[%emt 0:01:00]} Nf6 {[%emt 0:00:00]} 4. Bd3 {[%emt 0:00:30]} Nc6 {[%emt 0:00:30]} 5. O-O {[%emt 0:02:30]} Bg4 {[%emt 0:01:30]} 6. Bc2 {[%emt 0:04:30]} e6 {[%emt 0:04:30]} 7. d3 {[%emt 0:01:30]} Be7 {[%emt 0:01:30]} 8. h3 {[%emt 0:00:30]} Bh5 {[%emt 0:00:30]} 9. Bf4 {[%emt 0:01:30]} O-O {[%emt 0:01:30]} 10. Nbd2 {[%emt 0:02:30]} b5 {[%emt 0:03:30]} 11. Re1 {[%emt 0:02:30]} a5 {[%emt 0:14:30]} 12. Nf1 {[%emt 0:04:30]} Nd7 {[%emt 0:09:30]} 13. Ng3 {[%emt 0:04:30]} Bxf3 {[%emt 0:04:30]} 14. Qxf3 {[%emt 0:00:30]} Nde5 {[%emt 0:00:30]} 15. Bxe5 {[%emt 0:01:30]} Nxe5 {[%emt 0:00:30]} 16. Qe3 {[%emt 0:04:30]} Qb6 {[%emt 0:07:30]} 17. f4 {[%emt 0:10:30]} Nd7 {[%emt 0:01:30]} 18. Rad1 {[%emt 0:02:30]} Bh4 {[%emt 0:03:30]} 19. Rf1 {[%emt 0:03:30]} Rac8 {[%emt 0:03:30]} 20. Bb1 {[%emt 0:08:30]} Bf6 {[%emt 0:01:30]} 21. Nh5 {[%emt 0:02:30]} b4 {[%emt 0:06:30]} 22. Qg3 {[%emt 0:06:30]} g6 {[%emt 0:06:30]} 23. Nxf6+ {[%emt 0:01:30]} Nxf6 {[%emt 0:00:30]} 24. Qg5 {[%emt 0:04:30]} Nd7 {[%emt 0:03:30]} 25. f5 {[%emt 0:01:30]} exf5 {[%emt 0:04:30]} 26. exf5 {[%emt 0:00:30]} f6 {[%emt 0:00:30]} 27. Qh6 {[%emt 0:02:30]} g5 {[%emt 0:01:56]} 28. h4 {[%emt 0:02:30]} gxh4 {[%emt 0:03:29]} 29. Rf4 {[%emt 0:02:30]} Rf7 {[%emt 0:03:26]} 30. Re1 {[%emt 0:04:18]} Rg7 {[%emt 0:05:25]} 31. Rfe4 {[%emt 0:03:54]} Ne5 {[%emt 0:01:49]} 32. Qxf6 {[%emt 0:04:18]} Nf3+ {[%emt 0:05:11]} 33. Kh1 {[%emt 0:00:32]} Nxe1 {[%emt 0:00:47]} 34. Qe6+ {[%emt 0:00:08]} Kh8 {[%emt 0:00:02]} 35. Qxc8+ {[%emt 0:00:09]} Rg8 {[%emt 0:00:10]} 36. Re8 {[%emt 0:00:10]} Rxe8 {[%emt 0:00:16]} 37. Qxe8+ {[%emt 0:00:10]} Kg7 {[%emt 0:00:02]} 38. Qe7+ {[%emt 0:00:13]} Kh6 {[%emt 0:00:44]} 39. Qxe1 {[%emt 0:00:40]} Qd8 {[%emt 0:00:37]} 40. Qe6+ {[%emt 0:00:30]} Kh5 {[%emt 0:00:23]} 41. f6 {[%emt 0:00:19]} h3 {[%emt 0:01:24]} 42. Qxh3+ {[%emt 0:00:31]} Kg5 {[%emt 0:00:50]} 43. Qg3+ {[%emt 0:00:26]} Kh5 {[%emt 0:00:42]} 44. Qf3+ {[%emt 0:00:16]} Kg6 {[%emt 0:00:46]} 45. d4+ {[%emt 0:00:10]} Kf7 {[%emt 0:00:30]} 46. Qh5+ {[%emt 0:00:05]} Kf8 {[%emt 0:00:39]} 47. Qh6+ {[%emt 0:00:50]} 1-0

[Event "CRO-ch Youth U17 2020"]
[Site "Vinkovci"]
[Date "2020.08.01"]
[Round "6.6"]
[White "Dejanovic, Tereza"]
[Black "Bevanda, Ema"]
[Result "1-0"]
[ECO "C07"]
[WhiteElo "1788"]
[BlackElo "1554"]
[Annotator "NA"]
[PlyCount "55"]
[EventDate "2020.07.28"]
[EventType "swiss"]
[EventCountry "CRO"]
[TimeControl "5400+30"]

1. e4 {[%emt 0:00:30]} e6 {[%emt 0:00:30]} 2. d4 {[%emt 0:00:00]} d5 {[%emt 0:00:00]} 3. Nd2 {[%emt 0:00:00]} c5 {[%emt 0:00:00]} 4. exd5 {[%emt 0:00:00]} Qxd5 {[%emt 0:00:30]} 5. Ngf3 {[%emt 0:00:00]} cxd4 {[%emt 0:00:00]} 6. Bc4 {[%emt 0:00:30]} Qd6 {[%emt 0:00:00]} 7. O-O {[%emt 0:00:00]} Nf6 {[%emt 0:00:30]} 8. Nb3 {[%emt 0:00:00]} Nc6 {[%emt 0:01:30]} 9. Nbxd4 {[%emt 0:01:30]} Nxd4 {[%emt 0:00:00]} 10. Nxd4 {[%emt 0:00:00]} a6 {[%emt 0:00:00]} 11. a4 {[%emt 0:03:00]} Qc7 {[%emt 0:00:30]} 12. Bb3 {[%emt 0:01:30]} Bd7 {[%emt 0:00:30]} 13. c3 {[%emt 0:01:30]} Bd6 {[%emt 0:01:30]} 14. h3 {[%emt 0:00:30]} O-O-O {[%emt 0:01:30]} 15. Qe2 {[%emt 0:05:30]} h6 {[%emt 0:04:30]} 16. Bc4 {[%emt 0:08:30]} Nd5 {[%emt 0:03:30]} 17. Bxd5 {[%emt 0:05:30]} exd5 {[%emt 0:00:30]} 18. Qf3 {[%emt 0:00:00]} Be6 {[%emt 0:07:30]} 19. b4 {[%emt 0:03:00]} g5 {[%emt 0:01:30]} 20. b5 {[%emt 0:05:30]} a5 {[%emt 0:01:30]} 21. b6 {[%emt 0:03:30]} Qc4 {[%emt 0:03:30]} 22. Nb5 {[%emt 0:05:30]} Be5 {[%emt 0:03:30]} 23. Re1 {[%emt 0:01:30]} f6 {[%emt 0:01:30]} 24. Rxe5 {[%emt 0:17:30]} fxe5 {[%emt 0:00:00]} 25. Qf6 {[%emt 0:00:30]} Rhe8 {[%emt 0:13:00]} 26. Ba3 {[%emt 0:02:30]} Qf4 {[%emt 0:09:30]} 27. Qxh6 {[%emt 0:03:30]} Qxa4 {[%emt 0:07:30]} 28. Na7+ {[%emt 0:03:30]} 1-0

[Event "CRO-ch Youth U17 2020"]
[Site "Vinkovci"]
[Date "2020.08.01"]
[Round "6.7"]
[White "Bedic, Noemi"]
[Black "Mihaljevic, Eva"]
[Result "0-1"]
[ECO "C06"]
[WhiteElo "1712"]
[BlackElo "1223"]
[Annotator "NA"]
[PlyCount "60"]
[EventDate "2020.07.28"]
[EventType "swiss"]
[EventCountry "CRO"]
[TimeControl "5400+30"]

1. e4 {[%emt 0:00:30]} e6 {[%emt 0:00:30]} 2. d4 {[%emt 0:00:00]} d5 {[%emt 0:00:00]} 3. Nd2 {[%emt 0:00:00]} Nf6 {[%emt 0:00:00]} 4. e5 {[%emt 0:00:00]} Nfd7 {[%emt 0:00:00]} 5. Bd3 {[%emt 0:00:00]} c5 {[%emt 0:00:00]} 6. c3 {[%emt 0:00:00]} Nc6 {[%emt 0:00:30]} 7. Ne2 {[%emt 0:00:00]} cxd4 {[%emt 0:00:30]} 8. cxd4 {[%emt 0:00:30]} f6 {[%emt 0:00:30]} 9. exf6 {[%emt 0:01:30]} Nxf6 {[%emt 0:00:30]} 10. Nf3 {[%emt 0:02:30]} Bd6 {[%emt 0:05:30]} 11. Bf4 {[%emt 0:09:30]} O-O {[%emt 0:09:30]} 12. Bxd6 {[%emt 0:00:30]} Qxd6 {[%emt 0:00:00]} 13. O-O {[%emt 0:00:30]} Bd7 {[%emt 0:01:00]} 14. a3 {[%emt 0:04:30]} Be8 {[%emt 0:03:30]} 15. Ng3 {[%emt 0:02:30]} Qe7 {[%emt 0:17:30]} 16. Re1 {[%emt 0:02:30]} Nh5 {[%emt 0:03:30]} 17. Qc2 {[%emt 0:06:30]} h6 {[%emt 0:04:30]} 18. Nf5 {[%emt 0:28:30]} Qf6 {[%emt 0:02:30]} 19. Nd6 {[%emt 0:10:30]} Nf4 {[%emt 0:05:30]} 20. Re3 {[%emt 0:06:30]} Nxd4 {[%emt 0:02:30]} 21. Nxd4 {[%emt 0:00:30]} Qxd4 {[%emt 0:00:30]} 22. Rd1 {[%emt 0:05:25]} Qb6 {[%emt 0:01:30]} 23. Nxe8 {[%emt 0:00:40]} Raxe8 {[%emt 0:00:30]} 24. g3 {[%emt 0:00:46]} Nh3+ {[%emt 0:00:30]} 25. Kg2 {[%emt 0:01:46]} Rxf2+ {[%emt 0:00:30]} 26. Qxf2 {[%emt 0:00:06]} Nxf2 {[%emt 0:00:30]} 27. Kxf2 {[%emt 0:00:04]} Qxb2+ {[%emt 0:00:30]} 28. Ke1 {[%emt 0:00:30]} Rf8 {[%emt 0:00:30]} 29. Rd2 {[%emt 0:00:15]} Qc1+ {[%emt 0:00:30]} 30. Ke2 {[%emt 0:00:10]} Rf1 {[%emt 0:01:30]} 0-1

[Event "CRO-ch Youth U17 2020"]
[Site "Vinkovci"]
[Date "2020.08.01"]
[Round "6.8"]
[White "Randic, Petra"]
[Black "Raguz, Sima"]
[Result "1-0"]
[ECO "D20"]
[WhiteElo "1794"]
[BlackElo "1128"]
[Annotator "NA RC"]
[PlyCount "51"]
[EventDate "2020.07.28"]
[EventType "swiss"]
[EventCountry "CRO"]
[TimeControl "5400+30"]

1. d4 {[%emt 0:00:30]} d5 {[%emt 0:00:30]} 2. c4 {[%emt 0:00:00]} dxc4 {[%emt 0:00:30]} 3. e3 {[%emt 0:01:00]} Nf6 {[%emt 0:01:30]} 4. Bxc4 {[%emt 0:01:30]} e6 {[%emt 0:00:30]} 5. Ne2 {[%emt 0:01:30]} c5 {[%emt 0:01:30]} 6. O-O {[%emt 0:01:30]} Nc6 {[%emt 0:00:30]} 7. Nbc3 {[%emt 0:01:30]} cxd4 {[%emt 0:02:30]} 8. exd4 {[%emt 0:02:30]} Be7 {[%emt 0:02:30]} 9. h3 {[%emt 0:03:30]} O-O {[%emt 0:01:30]} 10. Be3 {[%emt 0:01:30]} Na5 {[%emt 0:05:30]} 11. Bd3 {[%emt 0:01:30]} Nd5 {[%emt 0:06:30]} 12. Nxd5 {[%emt 0:01:30]} exd5 {[%emt 0:06:30]} 13. Nf4 {[%emt 0:07:30]} g6 {[%emt 0:00:30]} 14. Qf3 {[%emt 0:03:30]} Be6 {[%emt 0:06:30]} 15. Nxe6 {[%emt 0:01:30]} fxe6 {[%emt 0:00:00]} 16. Qg4 {[%emt 0:01:30]} Qd6 {[%emt 0:02:00]} 17. Bh6 {[%emt 0:01:30]} Rf7 {[%emt 0:04:30]} 18. Bxg6 {[%emt 0:04:30]} Kh8 {[%emt 0:04:30]} 19. Bxf7 {[%emt 0:00:30]} Bf6 {[%emt 0:00:30]} 20. Bf4 {[%emt 0:00:30]} Qf8 {[%emt 0:00:30]} 21. Qxe6 {[%emt 0:01:30]} Bxd4 {[%emt 0:01:30]} 22. Be5+ {[%emt 0:00:00]} Bxe5 {[%emt 0:00:30]} 23. Qxe5+ {[%emt 0:00:00]} Qg7 {[%emt 0:00:00]} 24. Qxg7+ {[%emt 0:00:30]} Kxg7 {[%emt 0:00:00]} 25. Bxd5 {[%emt 0:00:00]} Rd8 {[%emt 0:00:30]} 26. Rfd1 {[%emt 0:00:00]} 1-0

[Event "CRO-ch Youth U17 2020"]
[Site "Vinkovci"]
[Date "2020.08.01"]
[Round "7.1"]
[White "Kovac, Petar"]
[Black "Ljubicic, Mario"]
[Result "0-1"]
[ECO "A65"]
[WhiteElo "1949"]
[BlackElo "1966"]
[Annotator "ChessBase"]
[PlyCount "64"]
[EventDate "2020.07.28"]
[EventType "swiss"]
[EventCountry "CRO"]
[SourceTitle "playchess.com"]
[Source "ChessBase"]
[SourceQuality "1"]
[TimeControl "5400+30"]

1. d4 {[%emt 0:00:30]} Nf6 {[%emt 0:00:30]} 2. c4 {[%emt 0:00:00]} g6 {[%emt 0:00:00]} 3. Nc3 {[%emt 0:00:00]} Bg7 {[%emt 0:00:00]} 4. e4 {[%emt 0:00:00]} d6 {[%emt 0:00:00]} 5. f3 {[%emt 0:00:00]} O-O {[%emt 0:00:00]} 6. Be3 {[%emt 0:00:00]} c5 {[%emt 0:00:00]} 7. d5 {[%emt 0:00:00]} e6 {[%emt 0:00:00]} 8. Nge2 {[%emt 0:00:30]} exd5 {[%emt 0:00:30]} 9. cxd5 {[%emt 0:00:00]} a6 {[%emt 0:00:00]} 10. a4 {[%emt 0:00:00]} Nbd7 {[%emt 0:02:00]} 11. Ng3 {[%emt 0:00:30]} h5 {[%emt 0:00:30]} 12. Be2 {[%emt 0:00:00]} h4 {[%emt 0:00:00]} 13. Nf1 {[%emt 0:00:00]} Ne5 {[%emt 0:00:00]} 14. Nd2 {[%emt 0:01:30]} h3 {[%emt 0:00:30]} 15. g3 {[%emt 0:00:00]} Bd7 {[%emt 0:00:30]} 16. O-O {[%emt 0:05:00]} b5 {[%emt 0:00:00]} 17. axb5 {[%emt 0:00:30]} axb5 {[%emt 0:00:00]} 18. Bxb5 {[%emt 0:02:30]} Bxb5 {[%emt 0:25:30]} 19. Nxb5 {[%emt 0:00:30]} Qb6 {[%emt 0:00:30]} 20. Qe2 {[%emt 0:06:30]} Rab8 {[%emt 0:08:30]} 21. Na3 {[%emt 0:05:30]} Qxb2 {[%emt 0:14:30]} 22. f4 {[%emt 0:13:30]} Neg4 {[%emt 0:01:30]} 23. Nac4 {[%emt 0:03:30]} Qb5 {[%emt 0:00:30]} 24. e5 {[%emt 0:04:30]} Nxe3 {[%emt 0:22:30]} 25. exf6 {[%emt 0:00:30]} Bxf6 {[%emt 0:01:30]} 26. Ra5 {[%emt 0:02:30]} Qb4 {[%emt 0:01:30]} 27. Rb1 {[%emt 0:03:30]} Qc3 {[%emt 0:01:30]} 28. Rxb8 {[%emt 0:05:30]} Rxb8 {[%emt 0:00:30]} 29. Ra3 {[%emt 0:01:30]} Qc1+ {[%emt 0:04:01]} 30. Kf2 {[%emt 0:00:00]} Nxc4 {[%emt 0:00:33]} 31. Nxc4 {[%emt 0:00:00]} Qh1 {[%emt 0:01:26]} 32. g4 {[%emt 0:03:30]} Bh4+ {[%emt 0:02:02]} 0-1

[Event "CRO-ch Youth U17 2020"]
[Site "Vinkovci"]
[Date "2020.08.01"]
[Round "7.2"]
[White "Levacic, Matej"]
[Black "Vucenovic, Damian"]
[Result "1-0"]
[ECO "D37"]
[WhiteElo "2040"]
[BlackElo "1959"]
[Annotator "ChessBase"]
[PlyCount "61"]
[EventDate "2020.07.28"]
[EventType "swiss"]
[EventCountry "CRO"]
[SourceTitle "playchess.com"]
[Source "ChessBase"]
[SourceQuality "1"]
[TimeControl "5400+30"]

1. d4 {[%emt 0:00:30]} d5 {[%emt 0:00:30]} 2. Nf3 {[%emt 0:00:00]} Nf6 {[%emt 0:00:30]} 3. c4 {[%emt 0:00:00]} e6 {[%emt 0:00:30]} 4. Nc3 {[%emt 0:00:00]} Be7 {[%emt 0:00:30]} 5. Bf4 {[%emt 0:00:00]} O-O {[%emt 0:01:30]} 6. e3 {[%emt 0:00:30]} b6 {[%emt 0:02:30]} 7. Bd3 {[%emt 0:00:30]} Bb7 {[%emt 0:03:30]} 8. O-O {[%emt 0:01:30]} c5 {[%emt 0:07:30]} 9. dxc5 {[%emt 0:00:30]} Bxc5 {[%emt 0:01:30]} 10. cxd5 {[%emt 0:01:30]} Nxd5 {[%emt 0:03:30]} 11. Be4 {[%emt 0:05:30]} Na6 {[%emt 0:08:30]} 12. Nxd5 {[%emt 0:02:30]} exd5 {[%emt 0:02:30]} 13. Bxh7+ {[%emt 0:05:30]} Kxh7 {[%emt 0:04:30]} 14. Ng5+ {[%emt 0:00:30]} Kg6 {[%emt 0:01:30]} 15. Qg4 {[%emt 0:04:30]} f5 {[%emt 0:03:30]} 16. Qg3 {[%emt 0:00:30]} Kf6 {[%emt 0:05:30]} 17. Be5+ {[%emt 0:10:30]} Ke7 {[%emt 0:00:30]} 18. Bxg7 {[%emt 0:02:30]} Kd7 {[%emt 0:04:30]} 19. Bxf8 {[%emt 0:01:30]} Qxf8 {[%emt 0:01:30]} 20. e4 {[%emt 0:13:30]} Qg7 {[%emt 0:06:30]} 21. exf5 {[%emt 0:05:30]} Rg8 {[%emt 0:01:30]} 22. h4 {[%emt 0:05:30]} Bd6 {[%emt 0:05:30]} 23. Qg4 {[%emt 0:05:30]} Qf6 {[%emt 0:03:30]} 24. Rfe1 {[%emt 0:06:30]} Nc5 {[%emt 0:09:30]} 25. Nh7 {[%emt 0:04:30]} Qg7 {[%emt 0:00:30]} 26. Nf6+ {[%emt 0:01:30]} Qxf6 {[%emt 0:04:03]} 27. Qxg8 {[%emt 0:00:30]} Ne4 {[%emt 0:00:59]} 28. Qe6+ {[%emt 0:01:30]} Qxe6 {[%emt 0:00:05]} 29. fxe6+ {[%emt 0:00:00]} Ke7 {[%emt 0:00:15]} 30. Rad1 {[%emt 0:02:00]} Bc5 {[%emt 0:00:32]} 31. Rxe4 {[%emt 0:00:30]} 1-0

[Event "CRO-ch Youth U17 2020"]
[Site "Vinkovci"]
[Date "2020.08.01"]
[Round "7.3"]
[White "Troselj, Ivan"]
[Black "Mahecic, Lovre"]
[Result "1-0"]
[ECO "C22"]
[WhiteElo "1857"]
[BlackElo "1949"]
[Annotator "ChessBase"]
[PlyCount "67"]
[EventDate "2020.07.28"]
[EventType "swiss"]
[EventCountry "CRO"]
[SourceTitle "playchess.com"]
[Source "ChessBase"]
[SourceQuality "1"]
[TimeControl "5400+30"]

1. e4 {[%emt 0:00:30]} e5 {[%emt 0:00:30]} 2. d4 {[%emt 0:00:00]} exd4 {[%emt 0:00:00]} 3. Qxd4 {[%emt 0:00:00]} Nc6 {[%emt 0:00:00]} 4. Qe3 {[%emt 0:00:00]} b6 {[%emt 0:00:30]} 5. Nc3 {[%emt 0:00:00]} Bb7 {[%emt 0:00:30]} 6. Bd2 {[%emt 0:00:30]} Bc5 {[%emt 0:00:30]} 7. Qg3 {[%emt 0:00:30]} g6 {[%emt 0:09:30]} 8. O-O-O {[%emt 0:00:30]} d6 {[%emt 0:00:30]} 9. Nd5 {[%emt 0:05:30]} Nce7 {[%emt 0:03:30]} 10. Bc3 {[%emt 0:03:30]} Bxd5 {[%emt 0:02:30]} 11. Bxh8 {[%emt 0:02:30]} Bxa2 {[%emt 0:00:30]} 12. Ne2 {[%emt 0:05:30]} Be6 {[%emt 0:03:30]} 13. Nc3 {[%emt 0:01:30]} Qd7 {[%emt 0:02:30]} 14. Ba6 {[%emt 0:05:30]} f6 {[%emt 0:07:30]} 15. e5 {[%emt 0:03:30]} fxe5 {[%emt 0:00:30]} 16. Bxe5 {[%emt 0:00:30]} Nf5 {[%emt 0:07:30]} 17. Qf3 {[%emt 0:00:30]} c6 {[%emt 0:03:30]} 18. Rhe1 {[%emt 0:01:30]} Kd8 {[%emt 0:00:30]} 19. g4 {[%emt 0:02:30]} Nfe7 {[%emt 0:02:30]} 20. Bxd6 {[%emt 0:01:30]} Bxd6 {[%emt 0:01:30]} 21. Qf8+ {[%emt 0:00:30]} Qe8 {[%emt 0:01:30]} 22. Rxd6+ {[%emt 0:00:30]} Bd7 {[%emt 0:00:30]} 23. Qxe8+ {[%emt 0:00:00]} Kxe8 {[%emt 0:00:30]} 24. Bb7 {[%emt 0:01:00]} Rd8 {[%emt 0:01:30]} 25. Bxc6 {[%emt 0:00:30]} Bxc6 {[%emt 0:00:30]} 26. Rxc6 {[%emt 0:00:30]} Rd7 {[%emt 0:01:30]} 27. Rce6 {[%emt 0:01:30]} Kf7 {[%emt 0:00:00]} 28. Nb5 {[%emt 0:02:30]} Kg7 {[%emt 0:05:00]} 29. Rd6 {[%emt 0:01:30]} Rb7 {[%emt 0:00:30]} 30. Kd2 {[%emt 0:01:30]} Nf6 {[%emt 0:00:30]} 31. f3 {[%emt 0:00:30]} Ned5 {[%emt 0:01:30]} 32. Nd4 {[%emt 0:00:30]} Ne7 {[%emt 0:01:30]} 33. Ne6+ {[%emt 0:00:30]} Kg8 {[%emt 0:00:30]} 34. Rd8+ {[%emt 0:00:00]} 1-0

[Event "CRO-ch Youth U17 2020"]
[Site "Vinkovci"]
[Date "2020.08.01"]
[Round "7.4"]
[White "Dabic, Stjepan"]
[Black "Mrvac, Petar"]
[Result "1/2-1/2"]
[ECO "D35"]
[WhiteElo "2120"]
[BlackElo "1848"]
[Annotator "NA"]
[PlyCount "169"]
[EventDate "2020.07.28"]
[EventType "swiss"]
[EventCountry "CRO"]
[SourceTitle "playchess.com"]
[Source "ChessBase"]
[SourceQuality "1"]
[TimeControl "5400+30"]

1. d4 {[%emt 0:00:30]} Nf6 {[%emt 0:00:30]} 2. c4 {[%emt 0:00:00]} e6 {[%emt 0:00:00]} 3. Nc3 {[%emt 0:00:00]} d5 {[%emt 0:00:00]} 4. cxd5 {[%emt 0:00:30]} exd5 {[%emt 0:00:30]} 5. Bg5 {[%emt 0:00:00]} Be7 {[%emt 0:00:30]} 6. e3 {[%emt 0:00:00]} c6 {[%emt 0:00:30]} 7. Bd3 {[%emt 0:01:30]} Ne4 {[%emt 0:01:30]} 8. Bxe7 {[%emt 0:02:30] 8.Bf4 is the modern continuation.} Qxe7 {[%emt 0:00:30]} 9. Bxe4 {[%emt 0:00:30] D35: Queen's Gambit Declined: Exchange Variation.} dxe4 {[%emt 0:00:30]} 10. Nge2 {[%emt 0:00:30]} O-O {[%emt 0:08:30] [#]} 11. d5 $146 {[%emt 0:00:30]} ({Predecessor:} 11. Qc2 f5 12. O-O Be6 13. Rfc1 Na6 14. Na4 Nb4 15. Qc5 Rf7 16. b3 Nd3 17. Qxe7 Rxe7 {½-½ (60) Zilka,S (2463)-Jakubowski,K (2497) Czechia 2009}) 11... Rd8 {[%emt 0:02:30]} 12. Qb3 {[%emt 0:00:30]} Na6 {[%emt 0:03:30]} 13. O-O {[%emt 0:01:30]} Qb4 {[%emt 0:13:30]} (13... cxd5 $11 {keeps the balance.} 14. Rfd1 (14. Nxd5 Qg5 $11) 14... Bg4) 14. dxc6 {[%emt 0:13:30]} bxc6 {[%emt 0:01:30]} 15. Qxb4 {[%emt 0:01:30]} Nxb4 {[%emt 0:00:30]} 16. a3 {[%emt 0:02:30]} Nd3 {[%emt 0:06:30]} 17. Nxe4 {[%emt 0:01:30]} Ba6 {[%emt 0:12:30]} 18. Rfd1 {[%emt 0:07:30]} Nxb2 {[%emt 0:05:30]} 19. Rxd8+ {[%emt 0:00:00]} Rxd8 {[%emt 0:00:30]} 20. Nd4 {[%emt 0:00:00]} Bb5 {[%emt 0:01:30]} 21. Nc3 {[%emt 0:02:30]} a6 {[%emt 0:22:58]} 22. a4 {[%emt 0:22:30]} ({Better is} 22. Rb1 $16 Na4 23. Ndxb5 (23. Ncxb5 cxb5 24. Rc1 Nb6 $11) 23... axb5 24. Nxa4 bxa4 25. Kf1) 22... c5 {[%emt 0:06:24]} 23. Ndxb5 {[%emt 0:02:30]} axb5 {[%emt 0:00:12]} 24. axb5 {[%emt 0:00:30]} Kf8 {[%emt 0:02:49]} 25. Rb1 {[%emt 0:02:30]} Nc4 {[%emt 0:00:44]} 26. b6 {[%emt 0:00:30]} Rb8 {[%emt 0:00:55]} 27. Nd5 {[%emt 0:00:30]} Ke8 {[%emt 0:01:27]} 28. Nc7+ {[%emt 0:01:30]} Kd7 {[%emt 0:00:21]} 29. Na6 {[%emt 0:00:30]} Rxb6 {[%emt 0:00:40]} 30. Nxc5+ {[%emt 0:00:30]} Ke7 {[%emt 0:01:06]} 31. Rxb6 {[%emt 0:00:30]} Nxb6 {[%emt 0:00:04]} 32. e4 {[%emt 0:00:30]} f6 {[%emt 0:00:44]} 33. h4 {[%emt 0:02:30]} Kd6 {[%emt 0:01:06]} 34. Nd3 {[%emt 0:00:30]} Nc4 {[%emt 0:00:48]} 35. f3 {[%emt 0:01:30]} g6 {[%emt 0:00:35]} 36. g4 {[%emt 0:02:30]} h6 {[%emt 0:02:06]} 37. Kf2 {[%emt 0:02:30]} g5 {[%emt 0:02:16]} 38. h5 {[%emt 0:00:00]} Ne5 {[%emt 0:00:26]} 39. Nb4 {[%emt 0:02:00]} Ke6 {[%emt 0:00:33]} 40. Kg3 {[%emt 0:01:30]} Nf7 {[%emt 0:00:42]} 41. Nd5 {[%emt 0:01:30]} Nd6 {[%emt 0:00:31]} 42. Ne3 {[%emt 0:00:30]} Ke5 {[%emt 0:00:54]} 43. Nf5 {[%emt 0:05:30]} Nf7 {[%emt 0:01:10]} 44. Kf2 {[%emt 0:04:58]} Kf4 $2 {[%emt 0:00:26]} (44... Ke6 $16 {was worth a try.} 45. Ke2 Kd7) 45. Ng3 {[%emt 0:00:24]} (45. Ne7 $18 {[%cal Re7g6] and White stays clearly on top.} Ke5 46. Ng8) 45... Nd6 {[%emt 0:00:33]} 46. Ne2+ {[%emt 0:00:39]} Ke5 {[%emt 0:00:07]} 47. Ke3 {[%emt 0:00:45]} Nf7 {[%emt 0:00:23]} 48. Ng3 {[%emt 0:00:37]} Nd6 {[%emt 0:00:15]} 49. Nf5 {[%emt 0:00:11]} Nf7 {[%emt 0:00:12]} 50. Ke2 {[%emt 0:05:41]} Kf4 {[%emt 0:00:27]} 51. Ne3 {[%emt 0:00:06]} Nd6 {[%emt 0:00:20]} 52. Nd5+ {[%emt 0:00:45]} Ke5 {[%emt 0:00:07] [#]} 53. Ne7 $1 {[%emt 0:02:15]} Ke6 {[%emt 0:01:21]} 54. Nf5 {[%emt 0:02:27]} Nf7 {[%emt 0:00:08]} 55. Kf2 {[%emt 0:00:16]} Ke5 {[%emt 0:00:14]} 56. Ke3 {[%emt 0:00:09]} Ke6 {[%emt 0:00:06]} 57. f4 {[%emt 0:04:07]} Kd7 {[%emt 0:01:55]} 58. fxg5 {[%emt 0:00:28]} ({White should play} 58. Kf2) 58... fxg5 {[%emt 0:00:23]} 59. Kd4 {[%emt 0:00:22]} Ke6 {[%emt 0:00:18]} 60. e5 $1 {[%emt 0:00:35]} Nxe5 {[%emt 0:00:13]} 61. Nxh6 {[%emt 0:00:02]} Nd7 {[%emt 0:01:10]} 62. Nf5 {[%emt 0:00:33]} Nf6 {[%emt 0:00:58]} 63. Ne3 {[%emt 0:00:36]} Ng8 {[%emt 0:00:36]} (63... Kd6 $1 $11) 64. Nc4 {[%emt 0:01:16]} (64. Ke4 $16) 64... Nf6 {[%emt 0:00:39]} 65. Ne5 {[%emt 0:00:04]} Ke7 {[%emt 0:00:24]} 66. h6 {[%emt 0:00:11]} Kf8 {[%emt 0:00:15]} 67. Kc5 {[%emt 0:00:44]} Kg8 $11 {[%emt 0:00:39]} 68. Kd6 {[%emt 0:00:04]} Kh7 {[%emt 0:00:28]} 69. Ke6 {[%emt 0:00:41]} Ng8 {[%emt 0:00:06]} 70. Nf7 {[%emt 0:00:38]} Nxh6 {[%emt 0:00:28]} 71. Nxh6 {[%emt 0:00:02]} Kxh6 {[%emt 0:00:04]} 72. Kf7 {[%emt 0:00:39]} Kh7 {[%emt 0:00:10]} 73. Kf6 {[%emt 0:01:15]} Kh6 {[%emt 0:00:18]} 74. Kf5 {[%emt 0:00:13]} Kh7 {[%emt 0:00:13]} 75. Kxg5 {[%emt 0:00:08]} Kg7 {[%emt 0:00:00]} 76. Kf5 {[%emt 0:00:00]} Kf7 {[%emt 0:00:05]} 77. g5 {[%emt 0:00:07]} Kg7 {[%emt 0:00:06]} 78. g6 {[%emt 0:00:14]} Kg8 {[%emt 0:00:11]} 79. Kg4 {[%emt 0:00:21]} Kg7 {[%emt 0:00:13]} 80. Kg5 {[%emt 0:00:04]} Kg8 {[%emt 0:00:07]} 81. Kh4 {[%emt 0:00:13]} Kg7 {[%emt 0:00:12]} 82. Kh5 {[%emt 0:00:04]} Kg8 {[%emt 0:00:07]} 83. Kh6 {[%emt 0:00:19]} Kh8 {[%emt 0:00:05]} 84. g7+ {[%emt 0:00:06]} Kg8 {[%emt 0:00:07]} 85. Kg6 {[%emt 0:00:04]} 1/2-1/2